bitfinex-derivatives/quotes_BTCF0:USTF0_20241120
["timestamp","ask_amount","ask_price","bid_price","bid_amount"]
[1732124089302,0.0311,93881.0,93853.0,0.15495738]
[1732124089303,0.05425976,93877.0,93853.0,0.15495738]
[1732124089489,0.3608,93871.0,93853.0,0.15495738]
[1732124089797,0.053208,93862.0,93853.0,0.20817038]
[1732124090100,0.3608,93862.0,93853.0,0.10995738]
[1732124090300,0.053211,93857.0,93853.0,0.10995738]
[1732124091002,0.053212,93855.0,93852.0,0.3608]
[1732124091307,0.053213,93853.0,93852.0,0.3608]
[1732124091691,0.3608,93862.0,93852.0,0.3608]
[1732124091892,0.053211,93857.0,93852.0,0.3608]
[1732124092391,0.053213,93853.0,93852.0,0.3608]
[1732124094398,0.053213,93853.0,93845.0,0.0323]
[1732124094603,0.053217,93846.0,93845.0,0.0323]
[1732124096897,0.36152,93862.0,93845.0,0.18725738]
[1732124097207,0.3608,93854.0,93845.0,0.18725738]
[1732124097404,0.3608,93862.0,93846.0,0.053217]
[1732124097405,0.41380226,93862.0,93846.0,0.053217]
[1732124097596,0.053214,93851.0,93845.0,0.18725738]
[1732124097795,0.053214,93851.0,93845.0,0.24047438]
[1732124098503,0.053217,93846.0,93845.0,0.0323]
[1732124099004,0.15495738,93861.0,93845.0,0.0323]
[1732124099005,0.053215,93851.0,93845.0,0.0323]
[1732124099206,0.053207,93865.0,93845.0,0.0323]
[1732124099207,0.053216,93848.0,93845.0,0.0323]
[1732124100106,0.053216,93848.0,93846.0,0.0327]
[1732124100403,0.41380226,93862.0,93847.0,0.20817338]
[1732124100704,0.41380226,93862.0,93846.0,0.0327]
[1732124100705,0.053216,93847.0,93846.0,0.0327]
[1732124101295,0.3608,93852.0,93845.0,0.0323]
[1732124101495,0.053217,93846.0,93845.0,0.0323]
[1732124103104,0.41510923,93852.0,93822.0,0.44099104]
[1732124103105,0.053222,93837.0,93826.0,0.005]
[1732124103303,0.414022,93837.0,93823.0,0.08707952]
[1732124104304,0.414022,93837.0,93823.0,0.2420369]
[1732124104504,0.414022,93837.0,93834.0,0.053223]
[1732124104709,0.053216,93848.0,93841.0,0.05322]
[1732124104899,0.3608,93851.0,93842.0,0.0316]
[1732124104900,0.053219,93844.0,93842.0,0.0316]
[1732124105098,0.3608,93851.0,93843.0,0.15495738]
[1732124105298,0.3608,93851.0,93844.0,0.3926]
[1732124105498,0.414002,93873.0,93844.0,0.4248]
[1732124105697,0.053209,93860.0,93852.0,0.15495738]
[1732124105911,0.053204,93869.0,93852.0,0.15495738]
[1732124106112,0.053197,93881.0,93854.0,8.841e-05]
[1732124106302,0.3608,93883.0,93855.0,0.14628]
[1732124106303,0.3609042,93874.0,93855.0,0.14628]
[1732124106697,0.3609042,93874.0,93859.0,0.15495738]
[1732124106909,0.3609042,93874.0,93855.0,0.14628]
[1732124106910,0.0001042,93874.0,93873.0,0.053202]
[1732124107209,0.3608,93891.0,93873.0,0.14628]
[1732124107414,0.0532,93876.0,93873.0,0.14628]
[1732124107801,0.3608,93883.0,93873.0,0.14628]
[1732124107999,0.00011504,93878.0,93873.0,0.14628]
[1732124108403,0.05331404,93878.0,93873.0,0.14628]
[1732124109113,0.053201,93874.0,93873.0,0.19816986]
[1732124109309,0.00011504,93878.0,93873.0,0.19816986]
[1732124109707,0.0532,93876.0,93873.0,0.19816986]
[1732124109912,0.00011504,93878.0,93873.0,0.14628]
[1732124109913,0.053201,93874.0,93873.0,0.14628]
[1732124110103,0.053204,93869.0,93868.0,0.0321]
[1732124110299,0.414004,93869.0,93868.0,0.17838]
[1732124110506,0.053204,93869.0,93868.0,0.17838]
[1732124111699,0.00011504,93878.0,93868.0,0.17838]
[1732124111700,0.05331404,93878.0,93868.0,0.17838]
[1732124111900,0.3608,93877.0,93876.0,0.15495738]
[1732124112805,0.053203,93871.0,93868.0,0.17838]
[1732124113006,0.0532,93876.0,93868.0,0.17838]
[1732124113311,0.053202,93872.0,93868.0,0.17838]
[1732124113506,0.053202,93872.0,93869.0,1.5]
[1732124113709,0.3608,93877.0,93869.0,1.5]
[1732124113908,0.3608,93877.0,93876.0,0.15495738]
[1732124114106,0.0319,93903.0,93876.0,0.15495738]
[1732124114107,0.413989,93896.0,93883.0,0.053196]
[1732124114314,0.413989,93896.0,93886.0,0.15495738]
[1732124114315,0.053189,93896.0,93886.0,0.15495738]
[1732124114617,0.3608,93900.0,93886.0,0.15495738]
[1732124114923,0.053192,93891.0,93886.0,0.15495738]
[1732124115212,0.00012734,93888.0,93886.0,0.15495738]
[1732124115717,0.00012734,93888.0,93884.0,0.14624]
[1732124116605,0.053195,93885.0,93884.0,0.19811666]
[1732124117006,0.053199,93877.0,93869.0,1.50056]
[1732124117217,0.053204,93869.0,93868.0,0.14624]
[1732124117418,0.053208,93862.0,93861.0,0.14624]
[1732124118114,0.053203,93871.0,93861.0,0.46584]
[1732124118321,0.0532,93876.0,93867.0,0.15495738]
[1732124118511,0.0314,93884.0,93861.0,0.14624]
[1732124118512,0.05345691,93883.0,93861.0,0.14624]
[1732124118708,0.0532,93876.0,93862.0,1.5]
[1732124118905,0.00012734,93888.0,93870.0,0.3608]
[1732124119224,0.3608,93908.0,93887.0,0.20815138]
[1732124119422,0.053181,93911.0,93887.0,0.20815138]
[1732124119423,0.44525158,93926.0,93907.0,0.15495738]
[1732124119607,0.053181,93909.0,93908.0,0.14564]
[1732124120126,0.053181,93909.0,93908.0,0.14164]
[1732124120414,0.05331224,93909.0,93908.0,0.14164]
[1732124121131,0.00013124,93909.0,93908.0,0.14164]
[1732124121423,0.3608,93932.0,93916.0,0.053177]
[1732124121424,0.053172,93926.0,93916.0,0.053177]
[1732124121621,0.3608,93932.0,93919.0,0.23707913]
[1732124121622,0.0543383,93932.0,93919.0,0.23707913]
[1732124121805,0.053169,93931.0,93922.0,0.053174]
[1732124122121,0.3608,93944.0,93919.0,0.23707913]
[1732124122122,0.053172,93925.0,93919.0,0.23707913]
[1732124122317,0.3608,93932.0,93919.0,0.23707913]
[1732124122516,0.3608,93932.0,93928.0,0.00011171]
[1732124122517,0.00013711,93929.0,93928.0,0.00011171]
[1732124122723,0.00013711,93929.0,93928.0,0.50655171]
[1732124123020,0.413956,93954.0,93928.0,0.50655171]
[1732124123021,0.053158,93950.0,93928.0,0.82595171]
[1732124123218,0.053155,93956.0,93944.0,0.3608]
[1732124123413,0.05292837,93974.0,93945.0,0.14564]
[1732124123620,0.053156,93954.0,93945.0,0.14564]
[1732124123811,0.3608,93971.0,93949.0,0.3608]
[1732124124123,0.3608,93971.0,93945.0,0.19985593]
[1732124124124,0.36092324,93956.0,93945.0,0.19985593]
[1732124124417,0.053161,93944.0,93929.0,0.50336]
[1732124124620,0.053161,93944.0,93929.0,0.35828]
[1732124124621,0.053169,93931.0,93929.0,0.35828]
[1732124124921,0.053169,93931.0,93930.0,0.1456]
[1732124126115,0.3608,93941.0,93928.0,0.00011171]
[1732124126116,0.05317,93929.0,93928.0,0.14571171]
[1732124128208,0.05317,93929.0,93928.0,0.00011171]
[1732124129115,0.41397,93929.0,93928.0,0.00011171]
[1732124129924,0.05317,93929.0,93928.0,0.00011171]
[1732124133326,0.06585196,93929.0,93928.0,0.00011171]
[1732124134216,0.053181,93909.0,93908.0,0.005]
[1732124134417,0.053171,93928.0,93903.0,0.14556]
[1732124134418,0.053184,93904.0,93903.0,0.14556]
[1732124134717,0.053181,93909.0,93906.0,0.053183]
[1732124134924,0.053168,93933.0,93903.0,0.56027868]
[1732124134925,0.053177,93917.0,93903.0,0.56027868]
[1732124135219,0.3608,93926.0,93903.0,0.56027868]
[1732124135220,0.05306258,93930.0,93922.0,0.053174]
[1732124135422,0.05306258,93930.0,93915.0,0.00012227]
[1732124135423,0.053168,93933.0,93927.0,0.23707913]
[1732124135623,0.0309,93944.0,93931.0,0.3608]
[1732124135923,0.053168,93934.0,93931.0,0.3608]
[1732124136217,0.0329063,93933.0,93931.0,0.3608]
[1732124136417,0.01265627,93932.0,93931.0,0.3608]
[1732124136625,0.053173,93924.0,93923.0,0.507]
[1732124136821,0.053173,93924.0,93923.0,0.3608]
[1732124137019,0.06583214,93924.0,93923.0,0.3608]
[1732124137827,0.01265914,93924.0,93923.0,0.413973]
[1732124138009,0.01265914,93924.0,93923.0,0.3608]
[1732124138214,0.06583214,93924.0,93923.0,0.3608]
[1732124138418,0.01265914,93924.0,93923.0,0.3608]
[1732124138619,0.01265914,93924.0,93923.0,0.413973]
[1732124139015,0.01265914,93924.0,93923.0,0.3608]
[1732124139221,0.01647601,93951.0,93923.0,0.6802]
[1732124139522,0.02730381,93950.0,93945.0,0.3608]
[1732124139715,0.02065756,93949.0,93946.0,0.17586]
[1732124139915,0.02065756,93948.0,93946.0,0.20686]
[1732124140122,0.07381756,93947.0,93946.0,0.20686]
[1732124140325,0.053157,93952.0,93946.0,0.20686]
[1732124140519,0.02056612,93951.0,93946.0,0.20686]
[1732124140832,0.00012324,93956.0,93948.0,0.15480855]
[1732124141130,0.00012324,93956.0,93950.0,0.053158]
[1732124141131,0.02056932,93955.0,93950.0,0.053158]
[1732124141329,0.02064472,93954.0,93950.0,0.053158]
[1732124141629,0.00012324,93956.0,93948.0,0.15480855]
[1732124141630,0.02064472,93953.0,93948.0,0.15480855]
[1732124141828,0.02064472,93952.0,93948.0,0.15480855]
[1732124142030,0.053158,93951.0,93948.0,0.15480855]
[1732124142626,0.00012324,93956.0,93948.0,0.15480855]
[1732124142627,0.053159,93949.0,93948.0,0.15480855]
[1732124142830,0.07369899,93949.0,93946.0,0.25928698]
[1732124143032,0.02053999,93948.0,93946.0,0.25928698]
[1732124143334,0.0205049,93947.0,93946.0,0.46725553]
[1732124143639,0.3608,93955.0,93949.0,0.053158]
[1732124143833,0.02050956,93954.0,93946.0,0.41409553]
[1732124144132,0.07366556,93953.0,93946.0,0.41409553]
[1732124144335,0.02050956,93952.0,93946.0,0.41409553]
[1732124144516,0.02050956,93951.0,93946.0,0.41409553]
[1732124144717,0.00012324,93956.0,93947.0,0.3608]
[1732124144929,0.053156,93953.0,93947.0,0.3608]
[1732124145128,0.02045808,93952.0,93947.0,0.3608]
[1732124145427,0.053159,93948.0,93947.0,0.3608]
[1732124145626,0.07361708,93948.0,93947.0,0.50636]
[1732124145825,0.02045808,93948.0,93947.0,0.50636]
[1732124146425,0.02045808,93948.0,93947.0,0.14556]
[1732124146621,0.02045808,93948.0,93935.0,0.14556]
[1732124146622,0.053166,93936.0,93935.0,0.14556]
[1732124146826,0.053166,93936.0,93926.0,0.053171]
[1732124146827,0.053167,93935.0,93926.0,0.053171]
[1732124147027,0.053167,93935.0,93925.0,0.15480855]
[1732124147028,0.02045808,93934.0,93932.0,0.14556]
[1732124147229,0.053167,93935.0,93932.0,0.14556]
[1732124147435,0.02056493,93934.0,93932.0,0.14556]
[1732124147618,0.02056493,93933.0,93932.0,0.14556]
[1732124147823,0.02056493,93933.0,93932.0,0.35353655]
[1732124148020,0.07373293,93933.0,93932.0,0.30036855]
[1732124148331,0.053168,93933.0,93932.0,0.30036855]
[1732124148533,0.07363994,93933.0,93932.0,0.30036855]
[1732124149522,0.02047194,93933.0,93932.0,0.30036855]
[1732124150124,0.07363994,93933.0,93932.0,0.12180854]
[1732124150332,0.07363994,93933.0,93931.0,0.55794994]
[1732124150333,0.053168,93932.0,93931.0,0.55794994]
[1732124150536,0.07363994,93932.0,93931.0,0.55794994]
[1732124150726,0.08028551,93932.0,93931.0,0.55794994]
[1732124151142,0.08028551,93932.0,93931.0,0.19714994]
[1732124151448,0.05317,93929.0,93928.0,0.145]
[1732124151626,0.45388411,93929.0,93928.0,0.145]
[1732124151822,0.09308411,93929.0,93928.0,0.145]
[1732124152036,0.45388411,93929.0,93928.0,0.145]
[1732124153137,0.45388411,93929.0,93921.0,0.145]
[1732124153331,0.053174,93922.0,93921.0,0.145]
[1732124153534,0.09308811,93922.0,93921.0,0.145]
[1732124155124,0.03991411,93922.0,93921.0,0.198174]
[1732124155434,0.03326818,93922.0,93921.0,0.198174]
[1732124155640,0.41397,93929.0,93921.0,0.198174]
[1732124155848,0.0315,93951.0,93924.0,0.15480855]
[1732124155849,0.01945949,93928.0,93924.0,0.15480855]
[1732124156028,0.01945949,93928.0,93921.0,0.145]
[1732124156029,0.0128129,93928.0,93927.0,0.56877955]
[1732124156332,0.01268081,93928.0,93927.0,0.51560855]
[1732124156536,0.01268081,93928.0,93927.0,2.06877955]
[1732124156734,0.06585181,93928.0,93927.0,1.8608]
[1732124157034,0.06585181,93928.0,93927.0,0.3608]
[1732124157737,0.053173,93924.0,93922.0,1.50056]
[1732124157927,0.053173,93924.0,93923.0,0.145]
[1732124158133,0.06579717,93924.0,93923.0,0.145]
[1732124158332,0.053175,93920.0,93919.0,0.05320659]
[1732124158531,0.06579917,93920.0,93919.0,0.145]
[1732124158738,0.06579967,93920.0,93919.0,0.145]
[1732124158942,0.08599949,93920.0,93919.0,0.145]
[1732124159129,0.08599949,93920.0,93918.0,0.35756]
[1732124159130,0.053176,93919.0,93918.0,0.35756]
[1732124159440,0.06580067,93919.0,93918.0,0.35756]
[1732124160140,0.01262467,93919.0,93918.0,0.410736]
[1732124160347,0.0321,93937.0,93918.0,0.35756]
[1732124160525,0.0008,93943.0,93935.0,0.15480855]
[1732124160845,0.37735125,93945.0,93934.0,0.145]
[1732124160846,0.053167,93935.0,93934.0,0.145]
[1732124161033,0.08604772,93935.0,93934.0,0.145]
[1732124161343,0.0863248,93935.0,93934.0,0.145]
[1732124161731,0.0331578,93935.0,93934.0,0.145]
[1732124162032,0.0863248,93935.0,93934.0,0.145]
[1732124162427,0.06592,93935.0,93934.0,0.145]
[1732124162629,0.012753,93935.0,93934.0,0.558967]
[1732124162836,0.00092324,93956.0,93955.0,0.053155]
[1732124163036,0.03393989,93956.0,93954.0,0.145]
[1732124163230,0.02031794,93955.0,93954.0,0.145]
[1732124163539,0.02031794,93955.0,93954.0,0.198156]
[1732124163927,0.00012324,93956.0,93955.0,0.053155]
[1732124164350,0.00012324,93956.0,93955.0,0.413955]
[1732124164351,1e-08,93956.0,93955.0,0.413955]
[1732124164637,1e-08,93956.0,93955.0,0.3608]
[1732124164831,1e-08,93956.0,93955.0,0.46660732]
[1732124165032,1e-08,93956.0,93955.0,0.45560731]
[1732124165231,1e-08,93956.0,93955.0,0.40245231]
[1732124166041,0.05315501,93956.0,93955.0,0.05265232]
[1732124166236,0.05315501,93956.0,93954.0,0.145]
[1732124166237,1e-08,93956.0,93954.0,0.145]
[1732124166431,1e-08,93956.0,93955.0,0.053155]
[1732124168941,1e-08,93956.0,93955.0,0.413955]
[1732124169834,0.0308,93982.0,93955.0,0.68012]
[1732124170029,0.02027669,93981.0,93979.0,0.15480855]
[1732124170231,0.36152,93994.0,93979.0,0.15480855]
[1732124170432,0.053138,93986.0,93979.0,0.20795055]
[1732124170941,0.053138,93986.0,93982.0,9.335e-05]
[1732124171125,7.521e-05,93985.0,93982.0,9.335e-05]
[1732124171330,0.053139,93983.0,93982.0,9.335e-05]
[1732124171533,7.521e-05,93985.0,93982.0,9.335e-05]
[1732124172836,0.053139,93984.0,93982.0,9.335e-05]
[1732124173427,7.521e-05,93985.0,93982.0,0.05256547]
[1732124173643,7.521e-05,93985.0,93982.0,9.335e-05]
[1732124174531,0.3192,93984.0,93959.0,0.3608]
[1732124174736,0.053152,93960.0,93959.0,0.3608]
[1732124176035,0.053152,93960.0,93959.0,0.51560855]
[1732124176434,0.3608,93973.0,93959.0,0.51560855]
[1732124176735,0.41429775,93973.0,93959.0,0.51560855]
[1732124177051,0.053148,93968.0,93966.0,0.15480855]
[1732124177431,0.3608,93973.0,93966.0,0.20795755]
[1732124177432,0.053146,93972.0,93966.0,0.20795755]
[1732124177632,0.3608,93973.0,93966.0,0.15480855]
[1732124177842,0.053148,93967.0,93966.0,0.15480855]
[1732124178044,0.053149,93966.0,93965.0,0.14496]
[1732124178435,0.053152,93960.0,93959.0,0.3608]
[1732124180132,0.053154,93957.0,93956.0,0.14496]
[1732124180748,0.3608,93973.0,93956.0,0.29976855]
[1732124180940,0.053139,93984.0,93972.0,0.15480855]
[1732124181148,0.053139,93984.0,93961.0,0.3608]
[1732124181149,0.36087521,93985.0,93973.0,0.197625]
[1732124181439,0.36087521,93985.0,93975.0,0.053144]
[1732124181440,0.053143,93977.0,93975.0,0.053144]
[1732124181743,0.053143,93977.0,93976.0,0.14448]
[1732124182445,0.413943,93977.0,93976.0,0.14448]
[1732124182649,0.053143,93977.0,93976.0,0.14448]
[1732124182839,0.413943,93977.0,93965.0,0.05315]
[1732124183041,0.053148,93967.0,93966.0,0.14448]
[1732124184042,0.053149,93966.0,93965.0,0.14448]
[1732124185043,0.053155,93955.0,93954.0,0.05229758]
[1732124185248,0.053155,93955.0,93954.0,0.14448]
[1732124185449,0.0309,93971.0,93954.0,0.29928855]
[1732124185654,0.0309,93971.0,93960.0,0.053152]
[1732124185655,0.053151,93962.0,93960.0,0.053152]
[1732124185846,0.053151,93962.0,93954.0,0.29928855]
[1732124185847,0.3608,93972.0,93959.0,0.3608]
[1732124186048,0.00072,93977.0,93971.0,0.15480855]
[1732124186254,0.0329,93983.0,93972.0,0.14448]
[1732124186255,0.3608,93976.0,93972.0,0.14448]
[1732124186448,0.0329,93983.0,93972.0,0.14448]
[1732124186646,0.053142,93978.0,93975.0,0.053144]
[1732124186844,0.053145,93973.0,93972.0,0.14448]
[1732124187345,7.521e-05,93985.0,93972.0,0.14448]
[1732124187547,7.521e-05,93985.0,93981.0,0.15480855]
[1732124187759,0.053141,93981.0,93972.0,0.46926112]
[1732124187964,0.3608,93979.0,93972.0,0.46926112]
[1732124188551,0.053141,93980.0,93972.0,0.41611612]
[1732124188764,7.521e-05,93985.0,93967.0,0.3608]
[1732124188765,0.053148,93968.0,93967.0,0.3608]
[1732124188970,0.053149,93966.0,93965.0,0.14448]
[1732124189374,0.3608,93970.0,93955.0,1.5]
[1732124189375,0.053153,93960.0,93955.0,1.5]
[1732124189563,0.053154,93957.0,93956.0,0.14448]
[1732124189962,0.063,93969.0,93953.0,0.05436617]
[1732124189963,0.053155,93955.0,93953.0,0.05436617]
[1732124190263,0.063,93969.0,93950.0,0.0623]
[1732124190264,0.0315,93969.0,93954.0,0.29928855]
[1732124190469,0.3608,93970.0,93967.0,0.15480855]
[1732124191673,0.053148,93968.0,93967.0,0.15480855]
[1732124191876,0.3608,93970.0,93967.0,0.15480855]
[1732124192479,0.0315,93984.0,93967.0,0.15480855]
[1732124192669,0.0315,93984.0,93976.0,0.15480855]
[1732124192974,0.053149,93966.0,93965.0,0.05195344]
[1732124193170,0.05315,93964.0,93963.0,0.14448]
[1732124195175,0.053154,93958.0,93957.0,0.41458638]
[1732124195474,0.053154,93958.0,93957.0,0.55846638]
[1732124195676,0.3608,93977.0,93957.0,2.05846638]
[1732124195866,0.3608,93977.0,93976.0,0.15480855]
[1732124196172,0.413943,93977.0,93976.0,0.15480855]
[1732124196575,0.3608,93977.0,93974.0,0.14448]
[1732124196777,0.0315,93984.0,93974.0,0.14448]
[1732124196778,0.053144,93975.0,93974.0,0.14448]
[1732124197171,0.413944,93975.0,93974.0,0.14448]
[1732124198391,0.05315,93965.0,93964.0,0.05277827]
[1732124198683,0.053158,93950.0,93949.0,0.0006]
[1732124198973,0.053158,93950.0,93944.0,0.00112]
[1732124198974,0.42665471,93950.0,93944.0,0.00112]
[1732124199179,0.3924,93949.0,93944.0,0.00056]
[1732124199373,0.40514839,93949.0,93944.0,0.10200186]
[1732124199572,0.0316,93949.0,93944.0,0.10200186]
[1732124199769,0.3924,93949.0,93944.0,0.10200186]
[1732124199970,0.445559,93949.0,93944.0,0.10200186]
[1732124200273,0.413959,93949.0,93944.0,0.10200186]
[1732124200474,0.413959,93949.0,93945.0,0.0311]
[1732124200475,0.053159,93949.0,93945.0,0.0311]
[1732124200676,0.413959,93949.0,93948.0,0.15488424]
[1732124201370,0.3608,93949.0,93948.0,0.20804324]
[1732124201583,0.413956,93954.0,93948.0,0.20804324]
[1732124201769,0.413956,93954.0,93948.0,0.15488424]
[1732124201770,0.3608,93954.0,93948.0,0.15488424]
[1732124201967,0.3608,93954.0,93951.0,0.053157]
[1732124202170,0.053159,93949.0,93948.0,0.15488424]
[1732124202381,0.053159,93949.0,93948.0,0.14456557]
[1732124203078,0.053159,93949.0,93948.0,8.557e-05]
[1732124204682,0.053159,93949.0,93944.0,0.00056]
[1732124204683,0.053161,93945.0,93944.0,0.00056]
[1732124204892,0.42690616,93945.0,93944.0,0.00056]
[1732124205072,0.69306516,93945.0,93924.0,0.3608]
[1732124205275,0.413972,93925.0,93924.0,0.14448]
[1732124205480,0.053177,93917.0,93916.0,0.50188]
[1732124205680,0.05327588,93917.0,93916.0,0.555057]
[1732124205978,0.05327588,93917.0,93916.0,0.05337304]
[1732124206179,0.05327588,93917.0,93915.0,0.14448]
[1732124206781,0.05327588,93917.0,93912.0,0.41469932]
[1732124206975,0.05327588,93917.0,93912.0,0.50528]
[1732124206976,0.053179,93914.0,93912.0,0.50528]
[1732124207377,9.888e-05,93917.0,93912.0,0.55852605]
[1732124207776,9.888e-05,93917.0,93915.0,0.053177]
[1732124207977,9.888e-05,93917.0,93916.0,0.0329]
[1732124208383,9.888e-05,93917.0,93916.0,0.17738]
[1732124209487,9.888e-05,93917.0,93916.0,0.14448]
[1732124209671,9.888e-05,93917.0,93916.0,0.14404]
[1732124209874,0.05327588,93917.0,93916.0,0.14404]
[1732124210074,0.05327588,93917.0,93916.0,0.09904]
[1732124210274,0.05327588,93917.0,93912.0,0.41404605]
[1732124210275,0.053179,93913.0,93912.0,0.05324605]
[1732124210482,0.05318,93911.0,93910.0,0.00013062]
[1732124210689,0.73342,93911.0,93910.0,1e-08]
[1732124211188,1.03342,93911.0,93910.0,1e-08]
[1732124212481,1.04657301,93911.0,93910.0,1e-08]
[1732124212877,1.03342,93911.0,93910.0,1e-08]
[1732124213189,1.04656646,93911.0,93910.0,1e-08]
[1732124213386,1.06760176,93911.0,93910.0,1e-08]
[1732124213794,1.03342,93911.0,93910.0,1e-08]
[1732124214090,0.053193,93889.0,93888.0,0.005]
[1732124214296,0.053202,93872.0,93866.0,0.053206]
[1732124214586,0.053202,93872.0,93871.0,0.41362996]
[1732124215089,0.053202,93872.0,93871.0,0.41374075]
[1732124215481,0.0308,93888.0,93873.0,0.053201]
[1732124215482,0.0532,93877.0,93873.0,0.053201]
[1732124215997,0.0532,93876.0,93873.0,0.053201]
[1732124216191,0.05377677,93887.0,93871.0,0.41374075]
[1732124216382,0.3608,93888.0,93875.0,0.053201]
[1732124216578,0.3608,93888.0,93872.0,0.14408]
[1732124216881,0.053189,93896.0,93871.0,0.41374075]
[1732124217079,0.053947,93900.0,93895.0,0.15479867]
[1732124217283,0.053187,93899.0,93895.0,0.15479867]
[1732124217591,0.3608,93905.0,93895.0,0.15479867]
[1732124217592,0.053188,93898.0,93896.0,0.0329]
[1732124219490,0.053191,93892.0,93891.0,0.14408]
[1732124219791,0.3608,93905.0,93891.0,0.14408]
[1732124219990,0.01300509,93904.0,93891.0,0.14408]
[1732124220180,0.413984,93905.0,93897.0,0.15479867]
[1732124220387,0.053183,93906.0,93898.0,0.086187]
[1732124220592,0.0321,93915.0,93898.0,0.086187]
[1732124220593,0.05327588,93917.0,93905.0,0.15479867]
[1732124220794,9.888e-05,93917.0,93916.0,0.15479867]
[1732124221194,0.05327588,93917.0,93916.0,0.15479867]
[1732124221693,0.053177,93916.0,93915.0,0.14408]
[1732124222300,0.053178,93915.0,93909.0,0.14408]
[1732124222592,0.053181,93911.0,93909.0,0.14408]
[1732124222788,0.053177,93916.0,93909.0,0.14408]
[1732124223191,9.888e-05,93917.0,93909.0,0.14408]
[1732124223583,9.888e-05,93917.0,93916.0,0.15479867]
[1732124223985,9.888e-05,93917.0,93916.0,0.20797567]
[1732124224199,0.053168,93932.0,93916.0,0.47423867]
[1732124224398,0.3608,93946.0,93930.0,0.15479867]
[1732124224691,0.053168,93932.0,93931.0,0.14408]
[1732124224897,0.3608,93935.0,93931.0,0.14408]
[1732124225193,0.3608,93935.0,93931.0,0.09908]
[1732124225194,0.00011509,93932.0,93931.0,0.09908]
[1732124225389,0.01645809,93961.0,93931.0,0.09908]
[1732124225390,0.053161,93945.0,93931.0,0.12976576]
[1732124225591,0.3608,93944.0,93940.0,0.15479867]
[1732124226297,0.0008,93955.0,93940.0,0.053164]
[1732124226494,0.3608,93971.0,93940.0,0.053164]
[1732124226495,0.3608,93948.0,93940.0,0.053164]
[1732124226796,0.00011762,93949.0,93940.0,0.053164]
[1732124226987,0.36091762,93949.0,93940.0,0.053164]
[1732124227191,0.00011762,93949.0,93932.0,0.3608]
[1732124227391,0.36091762,93949.0,93944.0,0.15479867]
[1732124227595,0.00011762,93949.0,93944.0,0.15479867]
[1732124228096,0.05316,93947.0,93944.0,0.15479867]
[1732124228289,0.00011762,93949.0,93945.0,0.14408]
[1732124228488,0.05316,93946.0,93945.0,0.14408]
[1732124228902,0.053166,93936.0,93935.0,0.15479867]
[1732124229194,0.3608,93940.0,93933.0,0.29887867]
[1732124229495,0.00011762,93949.0,93939.0,0.15479867]
[1732124229701,0.00011762,93949.0,93948.0,0.15479867]
[1732124230087,0.0128016,93949.0,93948.0,0.15479867]
[1732124230601,0.00011762,93949.0,93942.0,0.0314]
[1732124232005,0.3608,93961.0,93947.0,0.15479867]
[1732124232300,0.3608,93972.0,93960.0,0.15479867]
[1732124232602,0.01251707,93971.0,93961.0,0.197191]
[1732124232800,0.01251435,93970.0,93961.0,0.14404]
[1732124232991,0.3608,93972.0,93969.0,0.15479867]
[1732124233193,7.769e-05,93971.0,93969.0,0.15479867]
[1732124233896,7.769e-05,93971.0,93969.0,0.20794567]
[1732124234395,7.769e-05,93971.0,93970.0,0.0625]
[1732124234600,0.1,94000.0,93970.0,0.0625]
[1732124234601,0.3608,93988.0,93977.0,0.053142]
[1732124234807,0.3608,93988.0,93984.0,0.15479867]
[1732124234997,0.15293674,94000.0,93985.0,0.14404]
[1732124235200,0.15293674,94000.0,93995.0,0.053132]
[1732124235201,0.1,94000.0,93995.0,0.053132]
[1732124235401,0.1,94000.0,93994.0,0.15479867]
[1732124235594,0.05194265,94011.0,94009.0,0.053124]
[1732124235913,0.05194265,94011.0,94010.0,0.14404]
[1732124236204,9.859e-05,94019.0,94010.0,0.14404]
[1732124236399,9.859e-05,94019.0,94016.0,0.15479867]
[1732124237304,9.859e-05,94019.0,94017.0,0.05312]
[1732124237601,9.859e-05,94019.0,94018.0,0.3608]
[1732124239097,0.053121,94017.0,94011.0,0.15479867]
[1732124239307,0.3608,94012.0,94005.0,0.1436]
[1732124239498,0.053126,94006.0,94005.0,0.1436]
[1732124240092,0.053126,94006.0,94005.0,0.1406]
[1732124240296,0.3608,94012.0,94005.0,0.1406]
[1732124240491,0.3608,94012.0,94011.0,0.15479867]
[1732124240691,0.36161859,94019.0,94011.0,0.15479867]
[1732124240692,0.053121,94015.0,94011.0,0.15479867]
[1732124240895,0.3608,94016.0,94005.0,0.1406]
[1732124241195,0.053122,94013.0,94005.0,0.1406]
[1732124241705,0.3608,94015.0,94005.0,0.1406]
[1732124241903,0.053125,94008.0,94005.0,0.1406]
[1732124243214,0.053124,94010.0,94005.0,0.1406]
[1732124243604,0.053122,94014.0,94005.0,0.1406]
[1732124243804,0.053126,94007.0,94005.0,0.1406]
[1732124245811,0.053125,94009.0,94005.0,0.1406]
[1732124246007,9.859e-05,94019.0,94008.0,0.15479867]
[1732124246206,9.859e-05,94019.0,94018.0,0.05312]
[1732124246611,9.859e-05,94019.0,94018.0,1.61772]
[1732124246912,9.859e-05,94019.0,94018.0,1.5646]
[1732124247111,9.859e-05,94019.0,94018.0,0.0646]
[1732124249513,0.01240908,94019.0,94017.0,0.00056]
[1732124249716,0.01231049,94018.0,94016.0,0.3608]
[1732124249913,0.01231049,94017.0,94016.0,0.41340621]
[1732124250804,0.01231049,94017.0,94016.0,0.56820488]
[1732124251513,0.01231049,94017.0,94016.0,0.20740488]
[1732124252505,0.06543049,94017.0,94016.0,0.05260621]
[1732124252720,0.06543049,94017.0,94015.0,0.14356]
[1732124252910,0.01231049,94016.0,94015.0,0.29835867]
[1732124253722,0.01231049,94016.0,94015.0,0.20903096]
[1732124254016,0.01231049,94016.0,94015.0,0.35259096]
[1732124254220,0.03172518,94016.0,94015.0,0.35259096]
[1732124254716,0.01231049,94016.0,94015.0,0.35259096]
[1732124255015,0.053122,94014.0,94013.0,0.14156]
[1732124255215,0.053124,94010.0,94009.0,0.14356]
[1732124255420,0.08469726,94010.0,94009.0,0.14356]